fUST/lending_fUST_20260120
["ID","MTS","AMOUNT","RATE_DAILY","PERIOD"]
[402753207,1768884449342,-3123.39,9.106e-05,2]
[402753208,1768884449389,-2335.75,9.6e-05,2]
[402753209,1768884455311,-10000.01,9.6e-05,2]
[402753210,1768884462539,-300.0,8.897e-05,2]
[402753211,1768884462574,-9400.01,9.6e-05,2]
[402753214,1768884483010,-300.0,9.599e-05,2]
[402753215,1768884483038,-193.39914656,9.599e-05,2]
[402753216,1768884483072,-113.06134805,9.599e-05,2]
[402753218,1768884517400,-483.40243748,9.599e-05,2]
[402753219,1768884517422,-500.0,9.599e-05,2]
[402753220,1768884517446,-16.59756252,9.6e-05,2]
[402753221,1768884518805,-1000.0,9.6e-05,2]
[402753222,1768884519159,-1000.0,9.6e-05,2]
[402753223,1768884519484,-1000.0,9.6e-05,2]
[402753224,1768884519827,-1000.0,9.6e-05,2]
[402753225,1768884520174,-1000.0,9.6e-05,2]
[402753226,1768884520507,-1000.0,9.6e-05,2]
[402753227,1768884520836,-1000.0,9.6e-05,2]
[402753228,1768884521152,-1000.0,9.6e-05,2]
[402753229,1768884521214,855.39,5.658e-05,2]
[402753230,1768884521491,-1000.0,9.6e-05,2]
[402753231,1768884521650,1710.77,6.172e-05,2]
[402753232,1768884521823,-1000.0,9.6e-05,2]
[402753233,1768884522151,2566.16,6.687e-05,2]
[402753234,1768884522180,-1000.0,9.6e-05,2]
[402753236,1768884522522,-1000.0,9.6e-05,2]
[402753237,1768884522990,-1000.0,9.6e-05,2]
[402753238,1768884523072,3421.55,7.201e-05,2]
[402753239,1768884523199,-1000.0,9.6e-05,2]
[402753240,1768884523568,-1000.0,9.6e-05,2]
[402753241,1768884524110,-1000.0,7.716e-05,2]
[402753242,1768884524593,-1000.0,7.716e-05,2]
[402753243,1768884524932,-1000.0,7.716e-05,2]
[402753244,1768884525624,-1000.0,7.716e-05,2]
[402753245,1768884525660,-276.93,7.716e-05,2]
[402753246,1768884525683,-723.07,8.23e-05,2]
[402753247,1768884525973,-1000.0,8.23e-05,2]
[402753248,1768884526390,-1000.0,8.23e-05,2]
[402753249,1768884527469,-162.28116241,8.23e-05,2]
[402753250,1768884527826,-1000.0,8.23e-05,2]
[402753251,1768884528825,-1000.0,8.23e-05,2]
[402753252,1768884529156,-246.96883759,8.23e-05,2]
[402753253,1768884529178,-753.03116241,8.744e-05,2]
[402753254,1768884530890,-1000.0,8.744e-05,2]
[402753255,1768884531681,-202.96,8.744e-05,2]
[402753256,1768884532095,-1000.0,8.744e-05,2]
[402753257,1768884533652,-1000.0,8.744e-05,2]
[402753258,1768884534219,-206.78,8.744e-05,2]
[402753259,1768884534780,-1000.0,8.744e-05,2]
[402753260,1768884535833,-161.85024419,8.744e-05,2]
[402753261,1768884539032,-500.0,8.744e-05,2]
[402753262,1768884603292,640.02,5.658e-05,2]
[402753263,1768884603727,806.12,6.173e-05,2]
[402753264,1768884603751,473.93,6.173e-05,2]
[402753265,1768884604190,1920.07,6.687e-05,2]
[402753266,1768884605100,2560.1,7.202e-05,2]
[402753267,1768884615246,-288.78131834,7.716e-05,2]
[402753268,1768884621778,-2911.33868166,7.716e-05,2]
[402753269,1768884621809,-337.19263668,8.23e-05,2]
[402753292,1768884631733,-3502.94736332,8.23e-05,2]
[402753294,1768884631743,-4480.17,8.745e-05,2]
[402753296,1768884631753,-4094.90096459,9.259e-05,2]
[402753298,1768884631787,-300.042,9.259e-05,2]
[402753621,1768884641026,-3e-08,9.259e-05,2]
[402753733,1768884642245,-182.02720693,9.259e-05,2]
[402754106,1768884645933,-411.88013531,9.115e-05,2]
[402754108,1768884645943,-543.21982845,9.259e-05,2]
[402754110,1768884645952,-1647.52054123,9.564e-05,2]
[402754112,1768884645961,-379.30196395,9.594e-05,2]
[402754114,1768884645970,-198.0,9.594e-05,2]
[402754116,1768884645979,-250.0,9.594e-05,2]
[402754118,1768884645988,-2150.738,9.594e-05,2]
[402754120,1768884645997,-445.202766,9.594e-05,2]
[402754122,1768884646006,-250.0,9.594e-05,2]
[402754124,1768884646015,-250.0,9.594e-05,2]
[402754126,1768884646024,-250.0,9.594e-05,2]
[402754128,1768884646033,-250.0,9.594e-05,2]
[402754130,1768884646043,-250.0,9.594e-05,2]
[402754132,1768884646051,-250.0,9.594e-05,2]
[402754134,1768884646061,-250.0,9.594e-05,2]
[402754135,1768884646070,-500.0,9.594e-05,2]
[402754137,1768884646081,-250.0,9.594e-05,2]
[402754139,1768884646091,-279.12995201,9.594e-05,2]
[402754141,1768884646100,-162.380719,9.594e-05,2]
[402754143,1768884646109,-250.0,9.594e-05,2]
[402754145,1768884646118,-21.36993838,9.594e-05,2]
[402756416,1768884684431,453.25,5.675e-05,2]
[402756417,1768884684850,906.5,6.191e-05,2]
[402756418,1768884685406,1359.75,6.707e-05,2]
[402756419,1768884685836,1813.01,7.223e-05,2]
[402756420,1768884686438,2266.26,7.739e-05,2]
[402756421,1768884686844,2719.51,8.254e-05,2]
[402756422,1768884687401,481.73,8.77e-05,2]
[402756423,1768884687423,2691.03,8.77e-05,2]
[402756424,1768884687799,3626.01,9.286e-05,2]
[402756425,1768884692525,-300.0,9.593e-05,2]
[402756426,1768884692547,-373.22825595,9.594e-05,2]
[402756427,1768884692570,-147.01886722,9.594e-05,2]
[402756428,1768884692593,-174.61919141,9.594e-05,2]
[402756429,1768884692616,-114.07483814,9.594e-05,2]
[402756430,1768884695157,-135.92516186,9.594e-05,2]
[402756431,1768884695182,-165.43561429,9.594e-05,2]
[402756432,1768884703887,-15.6444872,9.594e-05,2]
[402756433,1768884703911,-250.0,9.594e-05,2]
[402756434,1768884703936,-124.2511055,9.594e-05,2]
[402756435,1768884765450,390.42,5.727e-05,2]
[402756436,1768884766164,780.85,6.248e-05,2]
[402756437,1768884766615,1171.27,6.768e-05,2]
[402756438,1768884767152,1340.43,7.289e-05,2]
[402756439,1768884767186,221.27,7.289e-05,2]
[402756440,1768884767571,1952.12,7.81e-05,2]
[402756441,1768884768047,2342.55,8.33e-05,2]
[402756442,1768884768500,2732.97,8.851e-05,2]
[402756443,1768884768943,2751.1,9.372e-05,2]
[402756444,1768884768971,372.3,9.372e-05,2]
[402756445,1768884846094,211.54,5.708e-05,2]
[402756446,1768884846524,423.08,6.227e-05,2]
[402756447,1768884846947,634.62,6.745e-05,2]
[402756448,1768884859687,846.16,7.264e-05,2]
[402756449,1768884860143,1057.7,7.783e-05,2]
[402756450,1768884860567,1269.24,8.302e-05,2]
[402756451,1768884861002,1480.78,8.821e-05,2]
[402756452,1768884861435,1692.32,9.34e-05,2]
[402756453,1768884908662,2012.27,9.543e-05,2]
[402756454,1768884908685,321.37,9.543e-05,2]
[402756455,1768884945448,241.72,6.217e-05,2]
[402756456,1768884946375,362.58,6.735e-05,2]
[402756457,1768884946957,483.44,7.253e-05,2]
[402756458,1768884947366,604.3,7.771e-05,2]
[402756459,1768884947806,725.16,8.289e-05,2]
[402756460,1768884948226,846.02,8.808e-05,2]
[402756461,1768884948611,1011.55805504,9.493e-05,2]
[402756462,1768884948651,966.88,9.326e-05,2]
[402756463,1768885023211,4436.98194496,8.666e-05,2]
[402756464,1768885023234,9223.43690614,8.666e-05,2]
[402756465,1768885034284,206.91,6.716e-05,2]
[402756466,1768885035220,275.88,7.233e-05,2]
[402756467,1768885035664,293.78309386,7.749e-05,2]
[402756468,1768885035690,51.07690614,7.749e-05,2]
[402756469,1768885036087,413.83,8.266e-05,2]
[402756470,1768885036510,482.8,8.782e-05,2]
[402756471,1768885036929,551.77,9.299e-05,2]
[402756472,1768885042551,152.35672739,9.462e-05,2]
[402756473,1768885082285,159.62665953,9.422e-05,2]
[402756474,1768885115716,198.28,7.246e-05,2]
[402756475,1768885116158,247.85,7.763e-05,2]
[402756476,1768885116589,297.42,8.281e-05,2]
[402756477,1768885117217,800.0,9.49e-05,2]
[402756478,1768885117739,346.99,8.799e-05,2]
[402756479,1768885118647,396.56,9.316e-05,2]
[402756480,1768885189416,153.22,7.626e-05,2]
[402756481,1768885189850,183.86,8.134e-05,2]
[402756482,1768885190797,214.5,8.642e-05,2]
[402756483,1768885191234,245.15,9.151e-05,2]
[402756484,1768885228821,500.0,9.32e-05,2]
[402756485,1768885228992,500.0,9.457e-05,2]
[402756486,1768885229653,152.5128342,9.457e-05,2]
[402756487,1768885235488,4899.91377888,9.499e-05,2]
[402756488,1768885235516,10000.01,9.499e-05,2]
[402756489,1768885235541,10000.01,9.499e-05,2]
[402756490,1768885235564,10000.01,9.499e-05,2]
[402756491,1768885235588,10000.01,9.499e-05,2]
[402756492,1768885235612,10000.01,9.499e-05,2]
[402756493,1768885235637,10000.01,9.499e-05,2]
[402756494,1768885235667,10000.01,9.499e-05,2]
[402756495,1768885235698,10000.01,9.499e-05,2]
[402756496,1768885235725,10000.01,9.499e-05,2]
[402756497,1768885248337,-500.0,9.32e-05,2]
[402756498,1768885248365,-500.0,9.32e-05,2]
[402756499,1768885248393,-500.0,9.32e-05,2]
[402756500,1768885248423,-500.0,9.32e-05,2]
[402756501,1768885248453,-500.0,9.457e-05,2]
[402756502,1768885248481,-500.0,9.457e-05,2]
[402756503,1768885248509,-500.0,9.457e-05,2]
[402756504,1768885248539,-500.0,9.457e-05,2]
[402756505,1768885252451,-9628.71045718,9.499e-05,2]
[402756506,1768885252539,-10000.01,9.499e-05,2]
[402756507,1768885254443,-10000.01,9.499e-05,2]
[402756508,1768885254598,-10000.01,9.499e-05,2]
[402756509,1768885254817,-10000.01,9.499e-05,2]
[402756510,1768885254938,-10000.01,9.499e-05,2]
[402756511,1768885255247,-10000.01,9.499e-05,2]
[402756512,1768885255261,-10000.01,9.499e-05,2]
[402756513,1768885255338,-10000.01,9.499e-05,2]
[402756514,1768885255590,-10000.01,9.499e-05,2]
[402756515,1768885259679,217.66,6.172e-05,2]
[402756516,1768885260282,326.49,6.686e-05,2]
[402756517,1768885262630,-435.32,7.2e-05,2]
[402756518,1768885262661,-15.79864597,7.714e-05,2]
[402756519,1768885263699,-528.35135403,7.714e-05,2]
[402756520,1768885263738,-652.98,8.229e-05,2]
[402756521,1768885263771,-761.81,8.743e-05,2]
[402756522,1768885263810,-870.64,9.257e-05,2]
[402756523,1768885263841,-300.0,9.498e-05,2]
[402756524,1768885264010,-3772.44729194,9.499e-05,2]
[402756525,1768885264155,-10000.01,9.499e-05,2]
[402756526,1768885264245,-10000.01,9.499e-05,2]
[402756527,1768885270792,-10000.01,9.499e-05,2]
[402756528,1768885270930,-10000.01,9.499e-05,2]
[402756529,1768885271091,-10000.01,9.499e-05,2]
[402756530,1768885322430,300.0,9.498e-05,2]
[402756531,1768885327885,167.0,4.2e-07,2]
[402756532,1768885351785,219.61,5.736e-05,2]
[402756533,1768885352209,439.21,6.257e-05,2]
[402756534,1768885352645,658.82,6.779e-05,2]
[402756535,1768885353604,878.43,7.3e-05,2]
[402756536,1768885354035,1098.04,7.822e-05,2]
[402756537,1768885354458,1317.64,8.343e-05,2]
[402756538,1768885354896,1537.25,8.865e-05,2]
[402756539,1768885355523,1756.86,9.386e-05,2]
[402756540,1768885363373,200.38000856,9.333e-05,2]
[402756541,1768885382679,300.0,9.498e-05,2]
[402756542,1768885418106,1126.76999144,9.477e-05,2]
[402756543,1768885418131,7223.73753986,9.477e-05,2]
[402756544,1768885430877,254.62,6.349e-05,2]
[402756545,1768885431310,381.93,6.878e-05,2]
[402756546,1768885431751,509.25,7.407e-05,2]
[402756547,1768885432210,636.56,7.936e-05,2]
[402756548,1768885432644,763.87,8.465e-05,2]
[402756549,1768885433081,891.18,8.994e-05,2]
[402756551,1768885510436,205.0,7.355e-05,2]
[402756552,1768885510840,307.51,7.968e-05,2]
[402756553,1768885511275,410.01,8.581e-05,2]
[402756554,1768885511723,512.51,9.194e-05,2]
[402756556,1768885590051,200.92,6.203e-05,2]
[402756557,1768885590513,301.37,6.72e-05,2]
[402756558,1768885590946,401.83,7.237e-05,2]
[402756559,1768885591397,502.29,7.754e-05,2]
[402756560,1768885591841,602.75,8.271e-05,2]
[402756561,1768885592259,703.2,8.788e-05,2]
[402756562,1768885668569,211.86,6.671e-05,2]
[402756563,1768885668975,282.48,7.184e-05,2]
[402756564,1768885669370,353.1,7.698e-05,2]
[402756565,1768885669553,-365.76369083,9.313e-05,2]
[402756566,1768885669583,-500.0,9.32e-05,2]
[402756567,1768885669612,-500.0,9.32e-05,2]
[402756568,1768885669641,-210.75939835,9.32e-05,2]
[402756569,1768885669670,-500.0,9.32e-05,2]
[402756570,1768885669698,-200.73176348,9.32e-05,2]
[402756571,1768885669726,-200.63351084,9.32e-05,2]
[402756572,1768885669757,-300.0,9.456e-05,2]
[402756573,1768885669787,-500.0,9.457e-05,2]
[402756574,1768885669815,-500.0,9.457e-05,2]
[402756575,1768885669844,-500.0,9.457e-05,2]
[402756576,1768885669872,-300.0,9.498e-05,2]
[402756577,1768885670106,423.72,8.211e-05,2]
[402756578,1768885670273,494.34,8.724e-05,2]
[402756579,1768885675540,-564.97,9.237e-05,2]
[402756580,1768885675569,-175.93291173,9.457e-05,2]
[402756581,1768885675598,-1200.0,9.498e-05,2]
[402756582,1768885675626,-178.0,9.498e-05,2]
[402756583,1768885682342,300.0,9.498e-05,2]
[402756584,1768885682471,200.48366325,9.32e-05,2]
[402756586,1768885683603,172.24,3.8e-06,2]
[402756587,1768885683924,172.24,3.8e-06,2]
[402756588,1768885746132,183.91,8.009e-05,2]
[402756589,1768885746556,229.89,8.581e-05,2]
[402756590,1768885747106,275.87,9.153e-05,2]
[402756591,1768885819346,186.01,7.729e-05,2]
[402756592,1768885819750,223.21,8.245e-05,2]
[402756593,1768885820307,260.41,8.76e-05,2]
[402756681,1768885838078,-800.0,9.251e-05,2]
[402756683,1768885838088,-550.0,9.251e-05,2]
[402756685,1768885838098,-29.5,9.275e-05,2]
[402756699,1768885838250,-268.11,9.275e-05,2]
[402756701,1768885838272,-800.0,9.363e-05,2]
[402756703,1768885838284,-800.0,9.363e-05,2]
[402756705,1768885838294,-799.61999144,9.457e-05,2]
[402756707,1768885838305,-500.0,9.492e-05,2]
[402756708,1768885838315,-297.9914878,9.492e-05,2]
[402756710,1768885838325,-500.0,9.492e-05,2]
[402756712,1768885838334,-500.0,9.492e-05,2]
[402756714,1768885838344,-500.0,9.492e-05,2]
[402756716,1768885838354,-627.46795357,9.492e-05,2]
[402756719,1768885838364,-458.83978153,9.492e-05,2]
[402756721,1768885838374,-500.0,9.492e-05,2]
[402756723,1768885838384,-500.0,9.492e-05,2]
[402756725,1768885838394,-500.0,9.492e-05,2]
[402756727,1768885838404,-500.0,9.492e-05,2]
[402756729,1768885838413,-500.0,9.492e-05,2]
[402756731,1768885838424,-500.0,9.492e-05,2]
[402756733,1768885838434,-500.0,9.492e-05,2]
[402756734,1768885838444,-500.0,9.492e-05,2]
[402756736,1768885838454,-500.0,9.492e-05,2]
[402756738,1768885838463,-500.0,9.492e-05,2]
[402756740,1768885838473,-500.0,9.492e-05,2]
[402756742,1768885838482,-500.0,9.492e-05,2]
[402756744,1768885838492,-500.0,9.492e-05,2]
[402756746,1768885838502,-94.08492937,9.492e-05,2]
[402756748,1768885838514,-405.91507063,9.492e-05,2]
[402756750,1768885838523,-500.0,9.492e-05,2]
[402756752,1768885838533,-500.0,9.492e-05,2]
[402756754,1768885838542,-241.9442332,9.492e-05,2]
[402756756,1768885838552,-500.0,9.492e-05,2]
[402756758,1768885838561,-500.0,9.492e-05,2]
[402756760,1768885838571,-500.0,9.492e-05,2]
[402756762,1768885838582,-371.49496714,9.492e-05,2]
[402756764,1768885838591,-500.0,9.492e-05,2]
[402756766,1768885838601,-500.0,9.492e-05,2]
[402756768,1768885838610,-500.0,9.492e-05,2]
[402756770,1768885838620,-500.0,9.492e-05,2]
[402756772,1768885838629,-577.44700808,9.492e-05,2]
[402756774,1768885838639,-500.0,9.492e-05,2]
[402756776,1768885838649,-500.0,9.492e-05,2]
[402756778,1768885838658,-500.0,9.492e-05,2]
[402756780,1768885838668,-500.0,9.492e-05,2]
[402756782,1768885838678,-500.0,9.492e-05,2]
[402756784,1768885838688,-500.0,9.492e-05,2]
[402756786,1768885838698,-500.0,9.492e-05,2]
[402756788,1768885838708,-162.380719,9.493e-05,2]
[402756790,1768885838718,-168.3888056,9.493e-05,2]
[402756792,1768885838728,-174.61919141,9.493e-05,2]
[402756794,1768885838737,-115.56659953,9.493e-05,2]
[402756819,1768885842323,-65.51350196,9.493e-05,2]
[402756820,1768885842332,-187.78006525,9.493e-05,2]
[402756821,1768885842341,-1123.70111936,9.493e-05,2]
[402756822,1768885842380,-1027.03688064,9.493e-05,2]
[402756824,1768885842390,-250.0,9.493e-05,2]
[402756825,1768885842399,-29.46677553,9.493e-05,2]
[402757109,1768885846152,-165.26115213,9.493e-05,2]
[402757111,1768885846162,-445.202766,9.493e-05,2]
[402757113,1768885846171,-250.0,9.493e-05,2]
[402757115,1768885846181,-201.93286099,9.493e-05,2]
[402757117,1768885846190,-250.0,9.493e-05,2]
[402757119,1768885846205,-209.40437684,9.493e-05,2]
[402757121,1768885846214,-250.0,9.493e-05,2]
[402757123,1768885846224,-217.15233878,9.493e-05,2]
[402757125,1768885846234,-250.0,9.493e-05,2]
[402757128,1768885846246,-225.18697532,9.493e-05,2]
[402757130,1768885846255,-250.0,9.493e-05,2]
[402757132,1768885846265,-233.51889341,9.493e-05,2]
[402757134,1768885846278,-242.15909246,9.493e-05,2]
[402757136,1768885846289,-250.0,9.493e-05,2]
[402757138,1768885846299,-250.0,9.493e-05,2]
[402757140,1768885846308,-251.11897888,9.493e-05,2]
[402757142,1768885846317,-250.0,9.493e-05,2]
[402757144,1768885846327,-260.4103811,9.493e-05,2]
[402757146,1768885846337,-250.0,9.493e-05,2]
[402757148,1768885846346,-270.0455652,9.493e-05,2]
[402757150,1768885846356,-250.0,9.493e-05,2]
[402757152,1768885846366,-280.03725112,9.493e-05,2]
[402757154,1768885846376,-250.0,9.493e-05,2]
[402757156,1768885846386,-290.39862941,9.493e-05,2]
[402757157,1768885846396,-250.0,9.493e-05,2]
[402757159,1768885846405,-301.1433787,9.493e-05,2]
[402757161,1768885846415,-311.07331126,9.493e-05,2]
[402757163,1768885846424,-300.0,9.497e-05,2]
[402757165,1768885846434,-1200.0,9.497e-05,2]
[402757167,1768885846444,-4936.87644857,9.499e-05,2]
[402757170,1768885846456,-3126.48,9.499e-05,2]
[402758031,1768885965022,161.46,8.258e-05,2]
[402758032,1768885965413,188.38,8.774e-05,2]
[402758034,1768885978501,10000.01,8.509e-05,2]
[402758035,1768885978524,10000.01,8.509e-05,2]
[402758036,1768885978549,10000.01,8.509e-05,2]
[402758037,1768885978571,2853.5718941,8.509e-05,2]
[402758038,1768885989958,800.0,9.103e-05,2]
[402758039,1768886034155,243.82,5.68e-05,2]
[402758040,1768886034735,487.63,6.196e-05,2]
[402758041,1768886035190,731.45,6.712e-05,2]
[402758042,1768886035619,975.26,7.229e-05,2]
[402758043,1768886036578,1219.08,7.745e-05,2]
[402758044,1768886037007,1462.89,8.261e-05,2]
[402758045,1768886037408,1226.3081059,8.778e-05,2]
[402758046,1768886037435,480.4018941,8.778e-05,2]
[402758047,1768886134816,156.93,5.688e-05,2]
[402758048,1768886135721,313.86,6.205e-05,2]
[402758049,1768886136540,470.79,6.722e-05,2]
[402758050,1768886136962,627.71,7.239e-05,2]
[402758051,1768886137400,784.64,7.756e-05,2]
[402758052,1768886137817,941.57,8.273e-05,2]
[402758053,1768886138383,1098.5,8.79e-05,2]
[402758054,1768886148914,4663.77014803,9.199e-05,2]
[402758056,1768886215678,293.41,6.228e-05,2]
[402758057,1768886216091,168.42795787,6.747e-05,2]
[402758058,1768886216119,271.68204213,6.747e-05,2]
[402758059,1768886217280,586.82,7.266e-05,2]
[402758060,1768886217802,733.52,7.785e-05,2]
[402758061,1768886218238,880.23,8.304e-05,2]
[402758062,1768886218668,1026.93,8.823e-05,2]
[402758063,1768886295123,192.58,6.217e-05,2]
[402758064,1768886295531,288.88,6.735e-05,2]
[402758065,1768886295957,385.17,7.253e-05,2]
[402758066,1768886296393,481.46,7.771e-05,2]
[402758067,1768886296827,577.75,8.289e-05,2]
[402758068,1768886297272,674.04,8.808e-05,2]
[402758069,1768886318549,164.1533677,8.449e-05,2]
[402758070,1768886379002,189.61,6.675e-05,2]
[402758071,1768886379451,252.81,7.188e-05,2]
[402758072,1768886379895,316.01,7.702e-05,2]
[402758073,1768886380319,379.21,8.215e-05,2]
[402758074,1768886381268,442.42,8.728e-05,2]
[402758075,1768886455322,300.70042484,9.199e-05,2]
[402758076,1768886455652,160.0,9.19e-05,2]
[402758077,1768886455793,172.37,7.186e-05,2]
[402758078,1768886456233,215.46,7.7e-05,2]
[402758079,1768886456588,160.0,9.19e-05,2]
[402758080,1768886456624,258.56,8.213e-05,2]
[402758081,1768886457038,301.65,8.726e-05,2]
[402758082,1768886482447,160.0,9.19e-05,2]
[402758084,1768886528204,9840.01,8.369e-05,2]
[402758085,1768886528235,10000.01,8.369e-05,2]
[402758086,1768886528260,10000.01,8.369e-05,2]
[402758087,1768886528282,10000.01,8.369e-05,2]
[402758088,1768886528306,10000.01,8.369e-05,2]
[402758089,1768886528329,10000.01,8.369e-05,2]
[402758090,1768886528352,10000.01,8.369e-05,2]
[402758091,1768886529509,-155.13,7.688e-05,2]
[402758092,1768886529530,-42.54538505,8.369e-05,2]
[402758093,1768886532020,-186.16,8.201e-05,2]
[402758094,1768886532077,-271.81215443,8.369e-05,2]
[402758096,1768886534128,-808.79097989,8.369e-05,2]
[402758097,1768886535644,-841.61912278,8.369e-05,2]
[402758098,1768886540939,-309.0923362,8.369e-05,2]
[402758099,1768886542404,-450.37351012,8.369e-05,2]
[402758100,1768886545022,-343.64082838,8.369e-05,2]
[402758101,1768886547854,-165.27917162,8.369e-05,2]
[402758102,1768886549336,-156.52863723,8.369e-05,2]
[402758103,1768886550958,-165.18982704,8.369e-05,2]
[402758104,1768886552460,-169.83519067,8.369e-05,2]
[402758105,1768886556907,-347.49643929,8.368e-05,2]
[402758106,1768886556931,-164.77159856,8.368e-05,2]
[402758107,1768886559151,-270.2105867,8.368e-05,2]
[402758108,1768886562929,-65.01781474,8.368e-05,2]
[402758109,1768886562956,-379.05840872,8.368e-05,2]
[402758110,1768886565585,-120.94159128,8.368e-05,2]
[402758111,1768886565610,-108.50229467,8.368e-05,2]
[402758112,1768886569818,-177.88070623,8.368e-05,2]
[402758113,1768886569844,-47.96661173,8.368e-05,2]
[402758114,1768886573265,-213.14155788,8.368e-05,2]
[402758115,1768886575901,-123.20736167,8.368e-05,2]
[402758116,1768886575926,-88.8353895,8.368e-05,2]
[402758117,1768886577999,-249.67461348,8.368e-05,2]
[402758118,1768886580358,-161.48999702,8.368e-05,2]
[402758119,1768886580381,-124.41612259,8.368e-05,2]
[402758120,1768886584299,-279.5779515,8.368e-05,2]
[402758121,1768886585769,-81.72758892,8.368e-05,2]
[402758122,1768886585792,-144.3130855,8.368e-05,2]
[402758123,1768886587880,-209.21092804,8.368e-05,2]
[402758124,1768886590690,-110.63574486,8.368e-05,2]
[402758125,1768886590711,-185.78080893,8.368e-05,2]
[402758126,1768886596268,-114.21919107,8.368e-05,2]
[402758127,1768886596290,-51.96907354,8.369e-05,2]
[402758128,1768886600681,-167.35,7.202e-05,2]
[402758129,1768886600704,-209.19,7.716e-05,2]
[402758130,1768886600724,-260.03998095,8.369e-05,2]
[402758131,1768886604590,-251.03,8.231e-05,2]
[402758132,1768886604616,-121.94595322,8.369e-05,2]
[402758133,1768886606768,-173.23684724,8.369e-05,2]
[402758134,1768886615378,-153.05988995,8.369e-05,2]
[402758135,1768886620399,-263.90356187,8.369e-05,2]
[402758136,1768886625799,-246.91527674,8.369e-05,2]
[402758137,1768886629344,-167.2141737,8.369e-05,2]
[402758138,1768886631057,-240.54574161,8.369e-05,2]
[402758139,1768886636222,-166.66666668,8.369e-05,2]
[402758140,1768886638582,-411.6902829,8.369e-05,2]
[402758142,1768886644677,-222.90332121,8.368e-05,2]
[402758143,1768886646163,-77.09667879,8.368e-05,2]
[402758144,1768886646186,-104.43332121,8.369e-05,2]
[402758145,1768886649960,-176.11275449,8.369e-05,2]
[402758146,1768886652296,-264.74069852,8.369e-05,2]
[402758147,1768886653737,-381.69112342,8.369e-05,2]
[402758148,1768886657678,-192.60008397,8.369e-05,2]
[402758149,1768886660323,-189.47958343,8.369e-05,2]
[402758150,1768886661752,-497.28727757,8.369e-05,2]
[402758151,1768886664466,-216.69513228,8.369e-05,2]
[402758152,1768886668533,-360.15992558,8.369e-05,2]
[402758153,1768886671397,-251.59118923,8.369e-05,2]
[402758154,1768886671432,157.98,6.694e-05,2]
[402758155,1768886679537,-210.64,7.209e-05,2]
[402758156,1768886679561,-20.30724042,7.724e-05,2]
[402758157,1768886684067,-242.99275958,7.724e-05,2]
[402758158,1768886684091,-125.78724042,8.238e-05,2]
[402758159,1768886686197,-171.49066336,8.238e-05,2]
[402758160,1768886688845,-18.68209622,8.238e-05,2]
[402758161,1768886688866,-385.21396105,8.3e-05,2]
[402758162,1768886692021,-267.67102041,8.3e-05,2]
[402758163,1768886693476,-16.89501854,8.3e-05,2]
[402758164,1768886693499,-423.15983882,8.369e-05,2]
[402758165,1768886695462,-203.20803785,8.369e-05,2]
[402758166,1768886696858,-397.89809358,8.369e-05,2]
[402758167,1768886702282,-301.85311576,8.368e-05,2]
[402758168,1768886703654,-162.26354828,8.368e-05,2]
[402758169,1768886709138,-182.06,8.367e-05,2]
[402758170,1768886711599,-284.18,8.367e-05,2]
[402758171,1768886717315,-154.35907131,8.367e-05,2]
[402758172,1768886718758,-579.40092869,8.367e-05,2]
[402758173,1768886718786,-35.88333596,8.368e-05,2]
[402758174,1768886718811,-32.29666404,8.368e-05,2]
[402758175,1768886720357,-294.63023234,8.368e-05,2]
[402758176,1768886725819,-173.07310362,8.368e-05,2]
[402758177,1768886725845,-10.28289863,8.368e-05,2]
[402758178,1768886727443,-489.71710137,8.368e-05,2]
[402758179,1768886727467,-22.52312498,8.368e-05,2]
[402758180,1768886728892,-416.64399775,8.368e-05,2]
[402758181,1768886733227,-60.83287727,8.368e-05,2]
[402758182,1768886733251,-94.99724534,8.368e-05,2]
[402758183,1768886734667,-242.96476332,8.368e-05,2]
[402758184,1768886737753,-162.03799134,8.368e-05,2]
[402758185,1768886737777,-500.0,8.368e-05,2]